Workbook

Sheet Introduction
B2: About the HyPS Tool | M2: Disclaimer | V2: References (Theses)
B4: HyPS Tool - Design Method for Valve-Controlled Hydraulic Positioning Systems | M4: Users of this software acknowledge and agree that: The software is not a substitute for professional judgment or advice. It is the responsibility of the user to verify the accuracy and suitability of all results and recommendations obtained from the software. The developers of this software shall not be liable for any direct, indirect, incidental, special, consequential, or punitive damages arising out of the use of, or inability to use, the software, even if advised of the possibility of such damages. The user assumes all risks associated with the use of the software, including but not limited to, errors, omissions, inaccuracies, or misuse thereof. | V4: This method originated from the thesis by Fernando L. Furst (2001) and was updated based on the later contributions of other graduate students: Alisson D. C. de Souza (2005), José R. B. Ramos Filho (2007), Rodrigo Szpak (2008), Irving Muraro (2009) and Mario Destro (2015). DESTRO, Mário Cesar. Análise de condições operacionais críticas em posicionadores eletro-hidráulicos. 2014. Master’s Thesis. Universidade Federal de Santa Catarina. FUST, Fernando Luiz Sistematização do projeto preliminar de circuitos hidráulicos de controle de posição. Florianópolis,. 2001. Master’s Thesis. Universidade Federal de Santa Catarina. MURARO, Irving. Estudo das Características Comportamentais de Válvulas Proporcionais e seus Efeitos nos Posicionadores Eletro-Hidráulicos. 2009. . Master’s Thesis. Universidade Federal de Santa Catarina. RAMOS FILHO, José Roberto Branco. Análise Teórico-Experimental de Falhas em Válvulas Direcionais Servoproporcionais. 2009 Master’s Thesis Universidade Federal de Santa Catarina. SOUZA, Alisson D Correa de. Desenvolvimento de Sistema de Projeto e Controle de Posicionadores Hidráulicos . 2005. Master’s Thesis Universidade Federal de Santa Catarina. SZPAK, Rodrigo. Análise teorico-experimental do comportamento das pressões em posicionadores hidráulicos. 2008. Master’s Thesis Universidade Federal de Santa Catarina.
B11: Authorship
B13: The development of this tool was made possible through the collaborative efforts and support of several individuals at Laboratory of Hydraulic and Pneumatic Systems (LASHIP), in Florianopolis, Brazil. | M13: Reference text
M15: De Negri, V. J. Design Method for Valve-Controlled Hydraulic Positioning Systems. UFSC, 2023 (PowerPoint presentation). MURARO, I., TEIXEIRA, P. L., DE NEGRI, V. J. Effect of proportional valves and cylinders on the behavior of hydraulic positioning systems. In: FPMC 2013, 2013, Sarasota, FL.. p.1 – 9. DOI:10.1115/FPMC2013-4496. Available at laship.ufsc.br
B16: Pedro Alonso Condessa: Developer of the HyPS Tool. Marcos Paulo Nostrani: Advisor. Victor Juliano De Negri: Advisor/Coordinator. Release: 02/2024
B22: Instructions
B24: The Design Method for Valve-Controlled Hydraulic Positioning Systems is parte of the embodiment design phase. It comprises 3 steps as shown below. These Steps are detailed in next tab.
V26: References (Publications)
V28: DESTRO, MÁRIO C.; DE NEGRI, VICTOR J. Method for combining valves with symmetric and asymmetric cylinders for hydraulic systems. INTERNATIONAL JOURNAL OF FLUID POWER. v.19, p.1 - 14, 2018. DOI: 10.1080/14399776.2018.1483164 DESTRO, M. C., BRAVO, Rafael Rivelino da Silva, DE NEGRI, V. J. Comparative analysis of electro-hydraulic positioning systems under variable load conditions. In: 22nd International Congress of Mechanical Engineering (COBEM 2013), 2013, Ribeirão Preto. p.1663 – 1673. MURARO, I., TEIXEIRA, P. L., DE NEGRI, V. J. Effect of proportional valves and cylinders on the behavior of hydraulic positioning systems. In: ASME/BATH 2013 Symposium on Fluid Power & Motion Control, 2013, Sarasota, FL.. p.1 – 9. DOI:10.1115/FPMC2013-4496. MURARO, I., DE NEGRI, V. J., BELAN, H. C., RAMOS FILHO, J. R. B. Parameter influence on the design of hydraulic positioning systems In: 21st International Congress of Mechanical Engineering, 2011, Natal. RN. ABCM, 2011. SZPAK, R., RAMOS FILHO, J. R. B., DE NEGRI, V. J. Theoretical and experimental study of the matching between proportional valves and symmetric and asymmetric cylinders In: 7th International Fluid Power Conference - 7 IFK, 2010, Aachen-Germany. v.2. p.155 – 166. SZPAK, R., RAMOS FILHO, J. R.B., BELAN, H. C., DE NEGRI, V. J. Theoretical and Experimental al Study of the Pressure Behavior on Hydraulic Positioning Systems In: Cobem 2009, 2009, Gramado. ABCM, 2009. DE NEGRI. V., J., R. FILHO. J., R. B., SOUZA. A., D., C. A Design Method for Hydraulic Positioning Systems. 51th National Conference on Fluid Power (NCFP), in conjunction with IFPE 2008, p. 669-679, 2008, Las Vegas, USA.

Sheet Instructions
B2: Tasks of Step 1 | H2: Activities | X2: Tasks of Step 2 | AB2: Activities | AM2: -
S3: For Step 1, we have two spreasheets tabs. In the first one, which is "Step 1- Tasks 1 to 3", you have two paths to follow. The first one is if you don't know the actuator area. In this path, you'll fill all the orange tabs and get an actuator area as a result. Then, you'll have to search in catalogs to get an actuator with area greater than 90% of the result you got. For that, you can click in the Actuator Add Page and insert the informations needed. In the end of this tab, you can verify if your supply pressure is enough for the system you provided. The second path is if you already know the area. For this case, you can go ahead and input your actuator by clicking the Actuator Add Page and inserting the needed information. Then, you can return to the Step 1 - Tasks 1 to 3 and Choose the actuator you added. In the end of this tab, you can verify if your supply pressure is enough for the system you provided. After completing Tasks 1 to 3, you can proceed to Step 1 - Tasks 4 to 5, which automatically calculates flow rate and natural frequency for your actuator. | AJ3: For Step 2, we have two spreadsheets as well. The first one, which is "Step 2 - Tasks 1 to 4", calculates automatically the Flow Coefficient of the valve with the results from the previous Tasks. Then, you can proceed to "Step 2 - Tasks 5 to 8", where you are asked to add a valve. For this Task, you can click the Valve Add Page, where you can insert informations of the valve. After adding, you can return to the "Step 2 - Tasks 5 to 6" and Choose the valve you added. We have two verifications here. One is a Dynamic Response, which ensures that the natural frequency of your valve is greater than the one calculated. The second one is to verify if qv_max x D_P@ Vmax is within the valve operating limits. After completing Tasks 5 to 8, you can proceed to Overview to see the combination of your Actuator and Valve and see if the verifications are sucessfully met.

Sheet Step 1 - Tasks 1 to 3
B2: System Dynamic Requirements | G2: Task 1 (System) | L2: Verification
B3: Required Response | G3: Calculated Data | H3: Value | I3: Unity | J3: Description | L3: Verification Status | M3: Comment
B4: Requirements | C4: Value | D4: Unity | E4: Description | G4: ωn_S | H4: =IF(C6=1,6/(C5*C6),4/(C5*C6)) -> 46.15384615 | I4: rad/s | J4: System Natural Frequency | L4: =IF(C12="No",IF(AND(H10>0.9*H24,H24>H10),"WARNING",IF(H24>H10,"FAILED","PASS")),IF(H16>H10,"FAILED","PASS")) -> WARNING | M4: =IF(L4="PASS","Adequate Supply Pressure",IF(L4="WARNING","Slightly Lower Supply Pressure","Insufficient Supply Pressure")) -> Slightly Lower Supply Pressure
B5: ts_S | C5: 0.13 | D5: s | E5: System Settling Time | L5: =IF(C31>0.9*H30,"PASS","FAILED") -> PASS | M5: Actuator Area
B6: ζ | C6: 1 | D6: 1 | E6: System Damping Ratio | G6: Tasks 2 to 3 (Actuator)
B7: xd_A | C7: 0.05 | D7: m | E7: Desired Step Output | G7: Calculated Data | H7: Value | I7: Unity | J7: Description
B8: Hydraulic Requirements | G8: vmax_A | H8: =IF(C6=1,0.37*C7*H4,0.46*C7*H4) -> 0.8538461538 | I8: m/s | J8: Maximum Cylinder Velocity
B9: βe | C9: 1000000000 | D9: Pa | E9: Bulk Modulus | G9: amax_A | H9: =IF(C6=1,-0.13*C7*H4^2,-0.21*C7*H4^2) -> -13.84615385 | I9: m/s² | J9: Maximum Cylinder Acceleration
B10: ps | C10: 7000000 | D10: Pa | E10: Supply Pressure | G10: pL_max (expand) | H10: =IF(OR(C11="SymCylinder + SymValve",C11="AsymCylinder + AsymValve"),2/3*C10,IF(C11="SingleEffectAsymCylinder + 3PortsAsym",1/3*C10,0)) -> 4666666.667 | I10: Pa | J10: Load Pressure @ Max. Power
B11: configuration | C11: SymCylinder + SymValve | D11: 1 | E11: System Configuration | G11: pL_max (retract) | H11: =IF(C11="AsymCylinder + AsymValve",1/3 * C10,H10) -> 4666666.667 | I11: Pa | J11: Load Pressure @ Max. Power
B12: known area? | C12: No | D12: 1 | E12: Known Area | G12: =IF(C12="Yes","pL @ xmax","A_A @ xmax") -> A_A @ xmax | H12: =IF(C12="Yes",(C19*(C7+C24)+C21)/C31,(C19*(C7+C24)+C21)/H10) -> 0.001547226857 | I12: =IF(C12="Yes","Pa","m²") -> m² | J12: =IF(C12="Yes","Load Pressure @ Displacement","Cylinder Area @ Max. Displacement") -> Cylinder Area @ Max. Displacement
G13: =IF(C12="Yes","pL @ v_max","A_A @ v_max") -> A_A @ v_max | H13: =IF(C12="Yes",(H8*C20+C21)/C31,(H8*C20+C21)/H10) -> 0.001657252747 | I13: =IF(C12="Yes","Pa","m²") -> m² | J13: =IF(C12="Yes","Load Pressure @ Max. Vel.","Cylinder Area @ Max. Velocity") -> Cylinder Area @ Max. Velocity
B14: Load Requirements | G14: =IF(C12="Yes","pL @ a_max","A_A @ a_max") -> A_A @ a_max | H14: =IF(C12="Yes",(C35*ABS(H9)+C21)/C31,(C18*ABS(H9)+C21)/H10) -> 0.001533626374 | I14: =IF(C12="Yes","Pa","m²") -> m² | J14: =IF(C12="Yes","Load Pressure @ Max. Accel.","Cylinder Area @ Max. Acceleration") -> Cylinder Area @ Max. Acceleration
B15: Requirements | C15: Value | D15: Unity | E15: Description
B16: ML | C16: 10 | D16: kg | E16: Load Mass | G16: =IF(C12="Yes","Max(pL)","A_A") -> A_A | H16: =MAX(H12:H14) -> 0.001657252747 | I16: =IF(C12="Yes","Pa","m²") -> m² | J16: =IF(C12="Yes","Max Load Pressure","Cylinder Area A") -> Cylinder Area A
B17: MA | C17: 10 | D17: kg | E17: Cylinder Piston Mass | G17: A_B | H17: =C22 * H16 -> 0.001657252747 | I17: m² | J17: Cylinder Area B
B18: Mt | C18: =C17+C16 -> 20 | D18: kg | E18: Total Mass | G18: To continue with the Steps, insert a real actuator in the Choose Below Area.
B19: Kt | C19: 2618.4 | D19: N/m | E19: Stiffness of the Load
B20: Bt | C20: 1000 | D20: Ns/m | E20: Viscous Friction Coefficient
B21: FL | C21: 6880 | D21: N | E21: External Load | G21: pL @ xmax | H21: =(C19*(C7+C24)+C21)/C31 -> 4560163.007
B22: rA | C22: =IF(C11="SymCylinder + SymValve",1,0.5) -> 1 | D22: 1 | E22: Area ratio (AB/AA) | G22: pL @ v_max | H22: =(H8*C20+C21)/C31 -> 4884443.827
B23: lt_A | C23: 0.16 | D23: m | E23: Cylinder Stroke | G23: pL @ a_max | H23: =(C35*ABS(H9)+C21)/C31 -> 4482405.615
B24: xi_A | C24: 0.08 | D24: m | E24: Initial Cylinder Position | H24: =MAX(H21:H23) -> 4884443.827
C26: Choose Below:
B27: Actuator | C27: REXROTH CGT3 MS2 50/22-500 SYM | D27: 1 | G27: =IF(C27="Yes","pL @ xmax","Aa @ xmax") -> Aa @ xmax | H27: =(C19*(C7+C24)+C21)/H10 -> 0.001547226857
G28: =IF(C27="Yes","pL @ v_max","Aa @ v_max") -> Aa @ v_max | H28: =(H8*C20+C21)/H10 -> 0.001657252747
B29: de | C29: =IF(C27<>"", VLOOKUP(C27,'Database Cylinder'!$A:$G, 5, FALSE), "") -> 0.05 | D29: m | E29: Cylinder Ø | G29: =IF(C27="Yes","pL @ a_max","Aa @ a_max") -> Aa @ a_max | H29: =(C18*ABS(H9)+C21)/H10 -> 0.001533626374
B30: dh | C30: =IF(C27<>"", VLOOKUP(C27,'Database Cylinder'!$A:$G, 6, FALSE), "") -> 0.022 | D30: m | E30: Cylinder Rod Ø | H30: =MAX(H27:H29) -> 0.001657252747
B31: AA | C31: =((C29^2-C30^2)*PI())/4 -> 0.001583362697 | D31: m² | E31: Cylinder Area A
B32: AB | C32: =C31*C39 -> 0.001583362697 | D32: m² | E32: Cylinder Area B
B33: MA | C33: =IF(C27<>"", VLOOKUP(C27,'Database Cylinder'!$A:$G, 2, FALSE), "") -> 5.5 | D33: kg | E33: Cylinder Mass at 0mm Stroke
B34: Ms_A | C34: =IF(C27<>"", VLOOKUP(C27,'Database Cylinder'!$A:$G, 3, FALSE), "") -> 1.2 | D34: kg/m | E34: Cylinder mass per (0.1m) 100mm Stroke
B35: Mt | C35: =C16+(C33+C34*C37) -> 15.692 | D35: kg | E35: Total Mass
B36: Vt_A | C36: =C31*C37 -> 0.0002533380316 | D36: m³ | E36: Cylinder Volume
B37: lt_A | C37: =IF(C27<>"", VLOOKUP(C27,'Database Cylinder'!$A:$G, 4, FALSE), "") -> 0.16 | D37: m | E37: Cylinder Stroke
B38: xA | C38: =IF(C39=1,C37,((C31*C37)/(C31-C32)) * (1-(C32/C31)^(1/2))) -> 0.16 | D38: m | E38: Cylinder Stroke
B39: rA | C39: =IF(C27<>"", VLOOKUP(C27,'Database Cylinder'!$A:$G, 7, FALSE), "") -> 1 | D39: 1 | E39: Area ratio (AB/AA)

Sheet Step 1 - Tasks 4 to 5
B2: System | G2: Tasks 4 to 5 (Actuator) | L2: Verification
B3: Calculated Data | C3: Value | D3: Unity | E3: Description | G3: Calculated Data | H3: Value | I3: Unity | J3: Description | L3: Verification Status | M3: Comment
B4: ωn_S | C4: ='Step 1 - Tasks 1 to 3'!H4 -> 46.15384615 | D4: rad/s | E4: System Natural Frequency | G4: qV_max | H4: =C11*'Step 1 - Tasks 1 to 3'!H8 -> 0.001351948149 | I4: m³/s | J4: Maximum Flow Rate | L4: =IF(H6>(5*C4),"PASS","WARNING") -> PASS | M4: Actuator Frequency
G5: qV_max | H5: =H4*60000 -> 81.11688896 | I5: L/min | J5: Maximum Flow Rate
B6: Actuator | G6: ωn_min_A | H6: =IF('Step 1 - Tasks 1 to 3'!C11="SymCylinder + SymValve",((4*'Step 1 - Tasks 1 to 3'!C9*C11^2)/(C16*C17))^(1/2),IF('Step 1 - Tasks 1 to 3'!C11="AsymCylinder + AsymValve",(('Step 1 - Tasks 1 to 3'!C9/C16)*((C11/C19)+(C12/(C18-C19))))^(1/2),IF('Step 1 - Tasks 1 to 3'!C11="SingleEffectAsymCylinder + 3PortsAsym",(('Step 1 - Tasks 1 to 3'!C9*C11^2)/(C16*C17))^(1/2),0))) -> 1588.258028 | I6: rad/s | J6: Cylinder Natural Frequency
B7: Actuator | C7: ='Step 1 - Tasks 1 to 3'!C27 -> REXROTH CGT3 MS2 50/22-500 SYM | G7: ωn_min_A | H7: =H6/(2*PI()) -> 252.7791161 | I7: Hz | J7: Cylinder Natural Frequency
B8: Catalog Data | C8: Value | D8: Unity | E8: Description
B9: de | C9: =IF(C7<>"", VLOOKUP(C7,'Database Cylinder'!$A:$G, 5, FALSE), "") -> 0.05 | D9: m | E9: Cylinder Ø
B10: dh | C10: =IF(C7<>"", VLOOKUP(C7,'Database Cylinder'!$A:$G, 6, FALSE), "") -> 0.022 | D10: m | E10: Cylinder Rod Ø
B11: AA | C11: =((C9^2-C10^2)*PI())/4 -> 0.001583362697 | D11: m² | E11: Cylinder Area A
B12: AB | C12: =C11*C20 -> 0.001583362697 | D12: m² | E12: Cylinder Area B
B13: MA | C13: =IF(C7<>"", VLOOKUP(C7,'Database Cylinder'!$A:$G, 2, FALSE), "") -> 5.5 | D13: kg | E13: Cylinder Mass at 0mm Stroke
B14: Ms_A | C14: =IF(C7<>"", VLOOKUP(C7,'Database Cylinder'!$A:$G, 3, FALSE), "") -> 1.2 | D14: kg/m | E14: Cylinder mass per (0.1m) 100mm Stroke
B15: Ml | C15: ='Step 1 - Tasks 1 to 3'!C16 -> 10 | D15: kg | E15: Load Mass
B16: Mt | C16: =C15+(C13+C14*C18) -> 15.692 | D16: kg | E16: Total Mass
B17: Vt_A | C17: =C11*C18 -> 0.0002533380316 | D17: m³ | E17: Cylinder Volume
B18: lt_A | C18: =IF(C7<>"", VLOOKUP(C7,'Database Cylinder'!$A:$G, 4, FALSE), "") -> 0.16 | D18: m | E18: Cylinder Stroke
B19: xA | C19: =IF(C20=1,C18,((C11*C18)/(C11-C12)) * (1-(C12/C11)^(1/2))) -> 0.16 | D19: m | E19: Cylinder Stroke
B20: ra | C20: =IF(C7<>"", VLOOKUP(C7,'Database Cylinder'!$A:$G, 7, FALSE), "") -> 1 | D20: 1 | E20: Area ratio

Sheet Step 2 - Tasks 1 to 4
B2: System | G2: Tasks 1 to 4 (Valve) | L2: Verification
B3: Calculated Data | C3: Value | D3: Unity | E3: Description | G3: Calculated Data | H3: Value | I3: Unity | J3: Description | L3: Verification Status | M3: Comment
B4: ωn_S | C4: ='Step 1 - Tasks 1 to 3'!H4 -> 46.15384615 | D4: rad/s | E4: System Natural Frequency | G4: wn_V | H4: =IF('Step 1 - Tasks 4 to 5'!L4="PASS",5*C4,5*C7) -> 230.7692308 | I4: rad/s | J4: Valve Natural Frequency | L4: PASS | M4: No verification
G5: ts_V | H5: =4/(H4*0.7) -> 0.02476190476 | I5: s | J5: Valve Settling Time (Considering 0.7 Damping Ratio)
B6: Actuator | G6: ts_V | H6: =H5*1000 -> 24.76190476 | I6: ms | J6: Valve Settling Time (Considering 0.7 Damping Ratio)
B7: ωn_min_A | C7: ='Step 1 - Tasks 4 to 5'!H6 -> 1588.258028 | D7: ='Step 1 - Tasks 4 to 5'!I6 -> rad/s | E7: ='Step 1 - Tasks 4 to 5'!J6 -> Cylinder Natural Frequency | G7: Δpt (extend) | H7: =IF('Step 1 - Tasks 1 to 3'!C11="SymCylinder + SymValve",'Step 1 - Tasks 1 to 3'!C10-C8,IF('Step 1 - Tasks 1 to 3'!C11="SingleEffectAsymCylinder + 3PortsAsym",2 * (('Step 1 - Tasks 1 to 3'!C10/2)-ABS(C8)),IF('Step 1 - Tasks 1 to 3'!C11="AsymCylinder + AsymValve",(4*'Step 1 - Tasks 1 to 3'!C10 - 4*C8)/3,0))) -> 2115556.173 | I7: Pa | J7: Valve Total Pressure Drop @ Max. Velocity
B8: pL_vmax | C8: =('Step 1 - Tasks 1 to 3'!C20*'Step 1 - Tasks 1 to 3'!H8+'Step 1 - Tasks 1 to 3'!C21)/'Step 1 - Tasks 4 to 5'!C11 -> 4884443.827 | D8: Pa | E8: Load Pressure @ Max. Velocity | G8: Δpt (retract) | H8: =IF('Step 1 - Tasks 1 to 3'!C11="AsymCylinder + AsymValve",(2*'Step 1 - Tasks 1 to 3'!C10-4*ABS('Step 1 - Tasks 1 to 3'!H11))/3,H7) -> 2115556.173 | I8: Pa | J8: Valve Total Pressure Drop @ Max. Velocity
G9: KV | H9: ='Step 1 - Tasks 4 to 5'!H4/(H7)^(1/2) -> 9.294964919e-07 | I9: m³/(s Pa^1/2) | J9: Flow Coefficient
G10: KV | H10: =H9*60000/SQRT(0.00001) -> 17.63595595 | I10: L/(min bar^1/2) | J10: Flow Coefficient
G14: pl @ v_max | I14: Pa | J14: Cylinder Area with Max. Velocity

Sheet Step 2 - Tasks 5 to 8
B2: Valve | G2: Tasks 5 to 8 (Valve) | L2: Verification
B3: Calculated Data | C3: Value | D3: Unity | E3: Description | G3: Calculated Data | H3: Value | I3: Unity | J3: Description | L3: Verification Status | M3: Comment
B4: ωn_S | C4: ='Step 2 - Tasks 1 to 4'!C4 -> 46.15384615 | D4: rad/s | E4: System Natural Frequency | G4: ts_V | H4: =4/(C15*C16) -> 0.004044080477 | I4: s | J4: Valve Settling Time | L4: =IF(AND(H6>=(C6/2),H6<=2*C6),"PASS","FAILED") -> FAILED | M4: Kv Comparison
B5: wn_V | C5: ='Step 2 - Tasks 1 to 4'!H4 -> 230.7692308 | D5: rad/s | E5: Valve Natural Frequency | G5: ts_V | H5: =H4*1000 -> 4.044080477 | I5: ms | J5: Valve Settling Time | L5: =IF(C15>C5,"PASS","FAILED") -> PASS | M5: Dynamic Respose
B6: KV | C6: ='Step 2 - Tasks 1 to 4'!H9 -> 9.294964919e-07 | D6: m³/(sPa^1/2) | E6: Flow Coefficient | G6: KVcat | H6: =IF(C20="Yes",C18/(C17)^(1/2),SQRT(2)*C18/(C17)^(1/2)) -> 2.402673421e-07 | I6: m³/(sPa^1/2) | J6: Catalog Flow Coefficient | L6: =IF(J17="Checked","PASS","FAILED") -> FAILED | M6: Operating Limits
B7: KV | C7: =C6*60000/SQRT(0.00001) -> 17.63595595 | D7: L/(min bar^1/2) | E7: Flow Coefficient | G7: KVcat | H7: =H6*60000/SQRT(0.00001) -> 4.55875229 | I7: L/(min bar^1/2) | J7: Catalog Flow Coefficient
B8: KpU in catalog? | C8: No | D8: 1 | E8: Is Pressure Gain (KpU) in catalog? | G8: KqU0 | H8: =(H6*ABS('Step 2 - Tasks 1 to 4'!H7)^(1/2))/C19 -> 3.494676864e-05 | I8: m³/(sV) | J8: Flow Gain
B9: KpU | D9: Pa/V | E9: Pressure Gain | G9: KC0 (extend) | H9: =IF(C8="No",IF('Step 1 - Tasks 1 to 3'!C11="SymCylinder + SymValve",(H6)/(2*('Step 1 - Tasks 1 to 3'!C10-ABS('Step 2 - Tasks 1 to 4'!C8))^(1/2)),IF('Step 1 - Tasks 1 to 3'!C11="SingleEffectAsymCylinder + 3PortsAsym",(H6)/('Step 1 - Tasks 1 to 3'!C10-2*'Step 2 - Tasks 1 to 4'!C8)^(1/2),IF('Step 1 - Tasks 1 to 3'!C11="AsymCylinder + AsymValve",(1/3)^(1/2) * (H6)/('Step 1 - Tasks 1 to 3'!C10-'Step 2 - Tasks 1 to 4'!C8)^(1/2),0))),H8/C9) -> 8.259475473e-11 | I9: m³/(sPa) | J9: Flow-Pressure Coefficient
G10: KC0 (retract) | H10: =IF('Step 1 - Tasks 1 to 3'!C11="AsymCylinder + AsymValve",H6/(2*('Step 1 - Tasks 1 to 3'!C10-ABS('Step 2 - Tasks 1 to 4'!C8))^(1/2)),H9) -> 8.259475473e-11 | I10: m³/(sPa) | J10: Flow-Pressure Coefficient
C12: Choose Below: | G12: Check that qV_max x ΔpP @ vmax is within the valve operating limits
B13: Valve | C13: MOOG 760 C263-A | D13: 1
B15: wn_V_cat | C15: =IF(C13<>"", VLOOKUP(C13,'Database Valve'!$A:$G, 2, FALSE), "") -> 1099 | D15: rad/s | E15: Valve Natural Frequency
B16: ζV | C16: =IF(C13<>"", VLOOKUP(C13,'Database Valve'!$A:$G, 3, FALSE), "") -> 0.9 | D16: 1 | E16: Valve Damping Ratio
B17: Δpt_n | C17: =IF(C13<>"", VLOOKUP(C13,'Database Valve'!$A:$G, 4, FALSE), "") -> 6895000 | D17: Pa | E17: Catalog Valve Pressure Drop | G17: Please check the Operating Limits | J17: Not Checked
B18: qVn | C18: =IF(C13<>"", VLOOKUP(C13,'Database Valve'!$A:$G, 5, FALSE), "") -> 0.000630901964 | D18: m³/s | E18: Catalog Flow Rate at Pressure Drop
B19: Un | C19: =IF(C13<>"", VLOOKUP(C13,'Database Valve'!$A:$G, 6, FALSE), "") -> 10 | D19: V | E19: Nominal control signal
B20: total pressure drop? | C20: =IF(C13<>"", VLOOKUP(C13,'Database Valve'!$A:$G, 7, FALSE), "") -> Yes | D20: 1 | E20: Is the Pressure Drop in the Catalog the Total?

Sheet Overview
B2: Hydraulic Requirements | G2: System | L2: Verification
B3: Requirements | C3: Value | D3: Unity | E3: Description | G3: Calculated Data | H3: Value | I3: Unity | J3: Description | L3: Verification Status | M3: Comment
B4: βe | C4: ='Step 1 - Tasks 1 to 3'!C9 -> 1000000000 | D4: Pa | E4: Bulk Modulus | G4: ωn_S | H4: ='Step 1 - Tasks 1 to 3'!H4 -> 46.15384615 | I4: rad/s | J4: System Natural Frequency | L4: ='Step 1 - Tasks 1 to 3'!L4 -> WARNING | M4: ='Step 1 - Tasks 1 to 3'!M4 -> Slightly Lower Supply Pressure
B5: ps | C5: ='Step 1 - Tasks 1 to 3'!C10 -> 7000000 | D5: Pa | E5: Supply Pressure | L5: =IF(C17>(0.9 *'Step 1 - Tasks 1 to 3'!H30),"PASS","FAILED") -> PASS | M5: Actuator Area
B6: configuration | C6: SymCylinder + SymValve | D6: 1 | E6: System Configuration | G6: Actuator | L6: =IF(H8>(5*H4),"PASS","WARNING") -> PASS | M6: Actuator Frequency
G7: Calculated Data | H7: Value | I7: Unity | J7: Description | L7: =IF(AND(H19>=(H17/2),H19<=2*H17),"PASS","FAILED") -> FAILED | M7: Kv Comparison
B8: Actuator | C8: ='Step 1 - Tasks 1 to 3'!C27 -> REXROTH CGT3 MS2 50/22-500 SYM | G8: ωn_min_A | H8: =IF(C6="SymCylinder + SymValve",((4*C4*C17^2)/(C13*C20))^(1/2),IF(C6="AsymCylinder + AsymValve",((C4/C13)*((C17/C21)+(C19/(C14-C21))))^(1/2),IF(C6="SingleEffectAsymCylinder + 3PortsAsym",((C4*C17^2)/(C13*C20))^(1/2),0))) -> 1588.258028 | I8: rad/s | J8: Cylinder Natural Frequency | L8: =IF('Step 2 - Tasks 5 to 8'!J17="Checked","PASS","FAILED") -> FAILED | M8: Operating Limits
B9: Catalog Data | C9: Value | D9: Unity | E9: Description | G9: ωn_min_A | H9: =H8/(2*PI()) -> 252.7791161 | I9: Hz | J9: Cylinder Natural Frequency | L9: ='Step 2 - Tasks 5 to 8'!L5 -> PASS | M9: ='Step 2 - Tasks 5 to 8'!M5 -> Dynamic Respose
B10: MA | C10: =IF(C8<>"", VLOOKUP(C8,'Database Cylinder'!$A:$G, 2, FALSE), "") -> 5.5 | D10: kg | E10: Cylinder Mass at 0mm Stroke | G10: qV_max | H10: =C17*'Step 1 - Tasks 1 to 3'!H8 -> 0.001351948149 | I10: m³/s | J10: Maximum Flow Rate
B11: Ms_A | C11: =IF(C8<>"", VLOOKUP(C8,'Database Cylinder'!$A:$G, 3, FALSE), "") -> 1.2 | D11: kg/m | E11: Cylinder mass per (0.1m) 100mm Stroke | G11: qV_max | H11: =H10*60000 -> 81.11688896 | I11: L/min | J11: Maximum Flow Rate
B12: ML | C12: ='Step 1 - Tasks 1 to 3'!C16 -> 10 | D12: kg | E12: Load Mass | G12: pl @ v_max | H12: =('Step 1 - Tasks 1 to 3'!C20*'Step 1 - Tasks 1 to 3'!H8+'Step 1 - Tasks 1 to 3'!C21)/C17 -> 4884443.827
B13: Mt | C13: =C12+(C10+C11*C14) -> 15.692 | D13: kg | E13: Total Mass in Movement | G13: Valve
B14: lt_A | C14: =IF(C8<>"", VLOOKUP(C8,'Database Cylinder'!$A:$G, 4, FALSE), "") -> 0.16 | D14: m | E14: Cylinder Stroke | G14: Calculated Data | H14: Value | I14: Unity | J14: Description
B15: de | C15: =IF(C8<>"", VLOOKUP(C8,'Database Cylinder'!$A:$G, 5, FALSE), "") -> 0.05 | D15: m | E15: Cylinder Ø | G15: Δpt (extend) | H15: =IF(C6="SymCylinder + SymValve",C5-H12,IF(C6="SingleEffectAsymCylinder + 3PortsAsym",2 * ((C5/2)-ABS(H12)),IF(C6="AsymCylinder + AsymValve",(4*C5 - 4*H12)/3,0))) -> 2115556.173 | I15: Pa | J15: Valve Total Pressure Drop
B16: dh | C16: =IF(C8<>"", VLOOKUP(C8,'Database Cylinder'!$A:$G, 6, FALSE), "") -> 0.022 | D16: m | E16: Cylinder Rod Ø | G16: Δpt (retract) | H16: =IF(C6="AsymCylinder + AsymValve",(2*C5-4*ABS(H12))/3,H15) -> 2115556.173 | I16: Pa | J16: Valve Total Pressure Drop
B17: AA | C17: =((C15^2-C16^2)*PI())/4 -> 0.001583362697 | D17: m² | E17: Cylinder Area A | G17: KV | H17: =H10/(H15)^(1/2) -> 9.294964919e-07 | I17: m³/(sPa^1/2) | J17: Flow Coefficient
B18: rA | C18: =IF(C8<>"", VLOOKUP(C8,'Database Cylinder'!$A:$G, 7, FALSE), "") -> 1 | D18: 1 | E18: Area ratio | G18: KV | H18: =H17*60000/SQRT(0.00001) -> 17.63595595 | I18: L/(min bar^1/2) | J18: Flow Coefficient
B19: AB | C19: =C18 * C17 -> 0.001583362697 | D19: m² | E19: Cylinder Area B | G19: KVcat | H19: =C28/SQRT(C27) -> 2.402673421e-07 | I19: m³/(sPa^1/2) | J19: Catalog Flow Coefficient
B20: Vt_A | C20: =C14*C17 -> 0.0002533380316 | D20: m³ | E20: Cylinder Volume | G20: KVcat | H20: =H19*60000/SQRT(0.00001) -> 4.55875229 | I20: L/(min bar^1/2) | J20: Catalog Flow Coefficient
B21: xA | C21: =IF(C18=1,C14,((C17*C14)/(C17-C19)) * (1-(C19/C17)^(1/2))) -> 0.16 | D21: m | E21: Cylinder Stroke | G21: KqU0 | H21: =H19*ABS(H15)^(1/2)/C29 -> 3.494676864e-05 | I21: m³/(sV) | J21: Flow Gain
G22: KC0 (extend) | H22: ='Step 2 - Tasks 5 to 8'!H9 -> 8.259475473e-11 | I22: m³/(sPa) | J22: Flow-Pressure Coefficient
B23: Valve | C23: ='Step 2 - Tasks 5 to 8'!C13 -> MOOG 760 C263-A | G23: KC0 (retract) | H23: ='Step 2 - Tasks 5 to 8'!H10 -> 8.259475473e-11 | I23: m³/(sPa) | J23: Flow-Pressure Coefficient
B24: Catalog Data | C24: Value | D24: Unity | E24: Description
B25: wn_V_cat | C25: =IF(C23<>"", VLOOKUP(C23,'Database Valve'!$A:$G, 2, FALSE), "") -> 1099 | D25: rad/s | E25: Valve Natural Frequency
B26: ζV | C26: =IF(C23<>"", VLOOKUP(C23,'Database Valve'!$A:$G, 3, FALSE), "") -> 0.9 | D26: 1 | E26: Valve Damping Ratio
B27: Δpt_n | C27: =IF(C23<>"", VLOOKUP(C23,'Database Valve'!$A:$G, 4, FALSE), "") -> 6895000 | D27: Pa | E27: Catalog Valve Pressure Drop
B28: qVn | C28: =IF(C23<>"", VLOOKUP(C23,'Database Valve'!$A:$G, 5, FALSE), "") -> 0.000630901964 | D28: m³/s | E28: Catalog Flow Rate at Pressure Drop
B29: Un | C29: =IF(C23<>"", VLOOKUP(C23,'Database Valve'!$A:$G, 6, FALSE), "") -> 10 | D29: V | E29: Nominal control signal
B30: total pressure drop? | C30: =IF(C23<>"", VLOOKUP(C23,'Database Valve'!$A:$G, 7, FALSE), "") -> Yes | D30: 1 | E30: Is the Pressure Drop in the Catalog the Total?

Sheet Add Actuator
B2: Cylinder
B3: Catalog Data | C3: Value | D3: Unity | E3: Description
B4: MA | D4: kg | E4: Cylinder Mass at 0mm Stroke
B5: Ms_A | D5: kg/m | E5: Cylinder mass per (0.1m) 100mm Stroke
B6: lt_A | D6: m | E6: Cylinder Stroke
B7: de | D7: m | E7: Cylinder Ø
B8: dh | D8: m | E8: Cylinder Rod Ø
B9: AA | C9: =(PI()*C7^2)/4 -> 0 | D9: m² | E9: Cylinder Area A
B10: rA | C10: =IF('Step 1 - Tasks 1 to 3'!C11="SymCylinder + SymValve",1,IF(C9>0.001,((C7^2-C8^2)*PI())/4/C9,0.5)) -> 1 | D10: 1 | E10: Area ratio

Sheet Database Cylinder
A1: No Selected Actuator | B1: MA | C1: Ms_A | D1: lt_A | E1: de | F1: dh | G1: rA
A2: REXROTH CGT3 MS2 50/22-500 SYM | B2: 5.5 | C2: 1.2 | D2: 0.16 | E2: 0.05 | F2: 0.022 | G2: 1
A3: REXROTH CGT3 MS2 50/22-500 ASYM | B3: 5.5 | C3: 1.2 | D3: 0.16 | E3: 0.05 | F3: 0.022 | G3: 0.8064

Sheet Add Valve
B2: Valve
B3: Catalog Data | C3: Value | D3: Unity | E3: Description
B4: wn_V_cat | D4: rad/s | E4: Valve Natural Frequency
B5: ζV | D5: 1 | E5: Valve Damping Ratio
B6: Δpt_n | D6: Pa | E6: Catalog Valve Pressure Drop
B7: qVn | D7: m³/s | E7: Catalog Flow Rate at Pressure Drop
B8: Un | D8: V | E8: Nominal control signal
B9: total pressure drop? | D9: 1 | E9: Is the Pressure Drop in the Catalog the Total?

Sheet Database Valve
A1: No Selected Valve | B1: wn_v | C1: ζ_v | D1: Δpt_cat | E1: qv_n_cat | F1: Un | G1: total pressure drop?
A2: MOOG 760 C263-A | B2: 1099 | C2: 0.9 | D2: 6895000 | E2: 0.000630901964 | F2: 10 | G2: Yes
A3: MOOG 760 S19KOFM4VPL | B3: 1979 | C3: 0.8 | D3: 6895000 | E3: 0.000315450982 | F3: 10 | G3: Yes

Sheet Planilha3
